[Event "Late-Titled-Tuesday-Blitz-May-14-2024"]
[Site "Chess.com"]
[Date "2024.05.14"]
[Round "5"]
[White "The_Machine04"]
[Black "Cambek64"]
[Result "1-0"]
[WhiteElo "2664"]
[BlackElo "2502"]
[TimeControl "180+1"]
[EndTime "14:58:10 PDT"]
[Termination "The_Machine04 won on time"]

1. d4 {[%clk 0:03:00.9]} 1... c5 {[%clk 0:02:59.1]} 2. d5 {[%clk 0:02:58.1]}
2... e5 {[%clk 0:02:59.7]} 3. e4 {[%clk 0:02:58.1]} 3... d6 {[%clk 0:03:00.2]}
4. Nc3 {[%clk 0:02:57.7]} 4... Be7 {[%clk 0:03:00.7]} 5. Nf3 {[%clk 0:02:57.7]}
5... Nf6 {[%clk 0:03:01.2]} 6. Be2 {[%clk 0:02:57.8]} 6... O-O {[%clk
0:03:01.7]} 7. O-O {[%clk 0:02:58.1]} 7... Na6 {[%clk 0:03:01.5]} 8. a4 {[%clk
0:02:58.5]} 8... Nc7 {[%clk 0:03:01.9]} 9. Nd2 {[%clk 0:02:59.1]} 9... Nd7
{[%clk 0:02:56.5]} 10. Nc4 {[%clk 0:02:58.2]} 10... b6 {[%clk 0:02:51.6]} 11. f4
{[%clk 0:02:54.5]} 11... exf4 {[%clk 0:02:48.9]} 12. Bxf4 {[%clk 0:02:55.4]}
12... Ne8 {[%clk 0:02:48.7]} 13. Qd2 {[%clk 0:02:51.6]} 13... a6 {[%clk
0:02:47.5]} 14. Rf3 {[%clk 0:02:39]} 14... f6 {[%clk 0:02:37.5]} 15. Rg3 {[%clk
0:02:35.7]} 15... Ne5 {[%clk 0:02:37.3]} 16. Ne3 {[%clk 0:02:34.5]} 16... Kh8
{[%clk 0:02:31.8]} 17. Rf1 {[%clk 0:02:31.2]} 17... Bd7 {[%clk 0:02:17]} 18. Nf5
{[%clk 0:02:21.8]} 18... Rb8 {[%clk 0:01:49.5]} 19. Bxa6 {[%clk 0:02:08.8]}
19... Bxf5 {[%clk 0:01:46.3]} 20. exf5 {[%clk 0:02:09.7]} 20... Nc7 {[%clk
0:01:45.2]} 21. Bd3 {[%clk 0:02:08.9]} 21... c4 {[%clk 0:01:37.2]} 22. Be4
{[%clk 0:02:08.2]} 22... b5 {[%clk 0:01:35.5]} 23. axb5 {[%clk 0:02:06.3]} 23...
Nxb5 {[%clk 0:01:36.1]} 24. Rh3 {[%clk 0:01:44.4]} 24... Nxc3 {[%clk 0:01:34.9]}
25. bxc3 {[%clk 0:01:45.3]} 25... Rb2 {[%clk 0:01:23.5]} 26. Qe2 {[%clk
0:01:40]} 26... Qe8 {[%clk 0:01:18.2]} 27. Bxe5 {[%clk 0:01:33.6]} 27... dxe5
{[%clk 0:01:08.4]} 28. Qxc4 {[%clk 0:01:33]} 28... Qb8 {[%clk 0:00:50.8]} 29.
Qd3 {[%clk 0:01:27.5]} 29... Rc8 {[%clk 0:00:45.5]} 30. Qg3 {[%clk 0:00:40.1]}
30... Bc5+ {[%clk 0:00:40.8]} 31. Kh1 {[%clk 0:00:39.2]} 31... Rb1 {[%clk
0:00:41.4]} 32. Qd3 {[%clk 0:00:28.7]} 32... Bd6 {[%clk 0:00:18.9]} 33. Rf3
{[%clk 0:00:27.7]} 33... Rxf1+ {[%clk 0:00:17.6]} 34. Rxf1 {[%clk 0:00:24.4]}
34... Qc7 {[%clk 0:00:18.5]} 35. Ra1 {[%clk 0:00:21]} 35... h6 {[%clk
0:00:16.7]} 36. Ra6 {[%clk 0:00:20.6]} 36... Bc5 {[%clk 0:00:13.9]} 37. Rc6
{[%clk 0:00:18.5]} 37... Qb8 {[%clk 0:00:14.4]} 38. Rxc8+ {[%clk 0:00:15]} 38...
Qxc8 {[%clk 0:00:14.9]} 39. g3 {[%clk 0:00:14.2]} 39... Qc7 {[%clk 0:00:14.7]}
40. Qb5 {[%clk 0:00:12.7]} 40... Qe7 {[%clk 0:00:13.7]} 41. Kg2 {[%clk
0:00:12.3]} 41... Kh7 {[%clk 0:00:13]} 42. h4 {[%clk 0:00:12.1]} 42... Qd6
{[%clk 0:00:13.5]} 43. c4 {[%clk 0:00:11.8]} 43... Qe7 {[%clk 0:00:13.9]} 44.
Qc6 {[%clk 0:00:11.5]} 44... Qf8 {[%clk 0:00:13.6]} 45. Qe6 {[%clk 0:00:11.4]}
45... Bd6 {[%clk 0:00:12.9]} 46. Bf3 {[%clk 0:00:11.3]} 46... Bc5 {[%clk
0:00:12.8]} 47. Bh5 {[%clk 0:00:11.5]} 47... Bd6 {[%clk 0:00:13.1]} 48. Bg6+
{[%clk 0:00:11.7]} 48... Kh8 {[%clk 0:00:12.4]} 49. Kh3 {[%clk 0:00:11.1]} 49...
Bc5 {[%clk 0:00:12.8]} 50. Kg4 {[%clk 0:00:10.8]} 50... Bd6 {[%clk 0:00:13.4]}
51. Kh5 {[%clk 0:00:11.3]} 51... Bc5 {[%clk 0:00:13.9]} 52. g4 {[%clk
0:00:10.1]} 52... Be7 {[%clk 0:00:13.5]} 53. Qf7 {[%clk 0:00:04.2]} 53... Qxf7
{[%clk 0:00:11.4]} 54. Bxf7 {[%clk 0:00:05.1]} 54... Kh7 {[%clk 0:00:10.1]} 55.
g5 {[%clk 0:00:04.9]} 55... hxg5 {[%clk 0:00:09.4]} 56. hxg5 {[%clk 0:00:05.8]}
56... fxg5 {[%clk 0:00:09.6]} 57. Kg4 {[%clk 0:00:05.3]} 57... Kh6 {[%clk
0:00:09.3]} 58. Bg6 {[%clk 0:00:05.8]} 58... Bd6 {[%clk 0:00:07.7]} 59. Kf3
{[%clk 0:00:05.7]} 59... Be7 {[%clk 0:00:03.5]} 60. Kg3 {[%clk 0:00:05.9]} 60...
e4 {[%clk 0:00:02.6]} 61. Kf2 {[%clk 0:00:05.5]} 61... Bc5+ {[%clk 0:00:02.8]}
62. Kg3 {[%clk 0:00:05.4]} 62... g4 {[%clk 0:00:03.1]} 63. Kxg4 {[%clk
0:00:05.6]} 63... e3 {[%clk 0:00:03.6]} 64. Kf3 {[%clk 0:00:06.1]} 64... Kg5
{[%clk 0:00:03.7]} 65. d6 {[%clk 0:00:06]} 65... Kf6 {[%clk 0:00:02.8]} 66. d7
{[%clk 0:00:05.3]} 66... Ke7 {[%clk 0:00:02.9]} 67. Be8 {[%clk 0:00:06]} 67...
Kd8 {[%clk 0:00:02.4]} 68. Ke2 {[%clk 0:00:06.2]} 68... Bb6 {[%clk 0:00:02.3]}
69. Kd3 {[%clk 0:00:05.9]} 69... Bc5 {[%clk 0:00:02.5]} 70. c3 {[%clk
0:00:05.6]} 70... Bb6 {[%clk 0:00:02.9]} 71. Bf7 {[%clk 0:00:05.8]} 71... Kxd7
{[%clk 0:00:02.3]} 72. Bh5 {[%clk 0:00:06.1]} 72... Kd6 {[%clk 0:00:02.5]} 73.
Ke4 {[%clk 0:00:07]} 73... Bc5 {[%clk 0:00:02.2]} 74. Be2 {[%clk 0:00:07.8]}
74... Bb6 {[%clk 0:00:02.1]} 75. Kf4 {[%clk 0:00:08.7]} 75... Bc5 {[%clk
0:00:02.1]} 76. Kg5 {[%clk 0:00:09.6]} 76... Ke7 {[%clk 0:00:02]} 77. Kg6 {[%clk
0:00:10.5]} 77... Kf8 {[%clk 0:00:01.9]} 78. Bf3 {[%clk 0:00:11.3]} 78... Bb6
{[%clk 0:00:01.1]} 79. Kh5 {[%clk 0:00:11.9]} 79... Bc5 {[%clk 0:00:01.6]} 80.
Kg5 {[%clk 0:00:12.5]} 80... Bb6 {[%clk 0:00:02.3]} 81. Kg6 {[%clk 0:00:13.1]}
81... Bc5 {[%clk 0:00:02.8]} 82. Kg5 {[%clk 0:00:13.9]} 82... Bb6 {[%clk
0:00:02.7]} 83. Kf4 {[%clk 0:00:14.6]} 83... Bc5 {[%clk 0:00:03.5]} 84. Ke5
{[%clk 0:00:15.2]} 84... Bb6 {[%clk 0:00:04.2]} 85. Kd6 {[%clk 0:00:15.6]} 85...
Ke8 {[%clk 0:00:03.4]} 86. c5 {[%clk 0:00:16.1]} 86... Ba5 {[%clk 0:00:03.3]}
87. c4 {[%clk 0:00:07.6]} 87... Kd8 {[%clk 0:00:02.1]} 88. c6 {[%clk 0:00:08.1]}
88... Bc7+ {[%clk 0:00:01.5]} 89. Ke6 {[%clk 0:00:08.7]} 89... Ke8 {[%clk
0:00:00.7]} 90. Bh5+ {[%clk 0:00:08.9]} 90... Kd8 {[%clk 0:00:00.1]} 91. Kf7
{[%clk 0:00:09.2]} 1-0

[Event "Late-Titled-Tuesday-Blitz-May-14-2024"]
[Site "Chess.com"]
[Date "2024.05.14"]
[Round "5"]
[White "simaopdias"]
[Black "cthulhuuu"]
[Result "0-1"]
[WhiteElo "2233"]
[BlackElo "2478"]
[TimeControl "180+1"]
[EndTime "14:58:10 PDT"]
[Termination "cthulhuuu won by resignation"]

1. e4 {[%clk 0:03:00.1]} 1... d6 {[%clk 0:02:59]} 2. Nc3 {[%clk 0:02:58.7]} 2...
Nf6 {[%clk 0:02:58.9]} 3. d4 {[%clk 0:02:59.4]} 3... c6 {[%clk 0:02:58.8]} 4.
Be2 {[%clk 0:02:59.8]} 4... b5 {[%clk 0:02:57.3]} 5. a3 {[%clk 0:02:57]} 5... e5
{[%clk 0:02:57]} 6. Nf3 {[%clk 0:02:56.6]} 6... Nbd7 {[%clk 0:02:50.5]} 7. d5
{[%clk 0:02:55.4]} 7... cxd5 {[%clk 0:02:48.1]} 8. exd5 {[%clk 0:02:52.1]} 8...
a6 {[%clk 0:02:47.6]} 9. Bg5 {[%clk 0:02:49.7]} 9... Be7 {[%clk 0:02:28.6]} 10.
Qd2 {[%clk 0:02:49.6]} 10... h6 {[%clk 0:02:25.3]} 11. Bxf6 {[%clk 0:02:45.1]}
11... Nxf6 {[%clk 0:02:22.2]} 12. O-O {[%clk 0:02:46]} 12... O-O {[%clk
0:02:05.7]} 13. Rfe1 {[%clk 0:02:41.8]} 13... Bf5 {[%clk 0:02:05.1]} 14. Nh4
{[%clk 0:02:40]} 14... Bh7 {[%clk 0:02:05.2]} 15. g3 {[%clk 0:02:28.7]} 15...
Rc8 {[%clk 0:01:44.8]} 16. Bd3 {[%clk 0:02:28.4]} 16... e4 {[%clk 0:01:36.3]}
17. Bf1 {[%clk 0:02:26.7]} 17... Ng4 {[%clk 0:01:24.7]} 18. Ng2 {[%clk
0:02:13.4]} 18... Ne5 {[%clk 0:01:24.9]} 19. Be2 {[%clk 0:02:08.8]} 19... Bg5
{[%clk 0:01:21.9]} 20. Qd1 {[%clk 0:01:46.6]} 20... Qd7 {[%clk 0:01:21.8]} 21.
f4 {[%clk 0:01:44]} 21... exf3 {[%clk 0:01:21.5]} 22. Bxf3 {[%clk 0:01:44.5]}
22... Bxc2 {[%clk 0:01:15.1]} 23. Qe2 {[%clk 0:01:40.1]} 23... Bd3 {[%clk
0:01:11.9]} 24. Qf2 {[%clk 0:01:36]} 24... Bg6 {[%clk 0:01:11.5]} 25. Be2 {[%clk
0:01:09.9]} 25... Rfe8 {[%clk 0:01:04.5]} 26. Nf4 {[%clk 0:01:08.5]} 26... Bxf4
{[%clk 0:00:58.4]} 27. gxf4 {[%clk 0:01:06.9]} 27... Ng4 {[%clk 0:00:54.5]} 28.
Qf3 {[%clk 0:01:01.7]} 28... h5 {[%clk 0:00:33.9]} 29. Bd3 {[%clk 0:00:55.7]}
29... Bxd3 {[%clk 0:00:29.3]} 30. Qxd3 {[%clk 0:00:56.6]} 30... Rxe1+ {[%clk
0:00:24.4]} 31. Rxe1 {[%clk 0:00:56.1]} 31... Re8 {[%clk 0:00:25.3]} 32. Re4
{[%clk 0:00:48.4]} 32... f5 {[%clk 0:00:23.4]} 33. Re2 {[%clk 0:00:39.4]} 33...
Rxe2 {[%clk 0:00:21.9]} 34. Qxe2 {[%clk 0:00:40.3]} 34... Kf7 {[%clk 0:00:22.2]}
35. Kg2 {[%clk 0:00:28.4]} 35... Qe7 {[%clk 0:00:18.5]} 36. Qxe7+ {[%clk
0:00:26.6]} 36... Kxe7 {[%clk 0:00:19.4]} 37. h3 {[%clk 0:00:25.7]} 37... Ne3+
{[%clk 0:00:19.6]} 38. Kf3 {[%clk 0:00:23.6]} 38... Nc4 {[%clk 0:00:20.5]} 39.
Nd1 {[%clk 0:00:22.9]} 39... a5 {[%clk 0:00:20.6]} 40. Ke2 {[%clk 0:00:21.7]}
40... Nb6 {[%clk 0:00:16.4]} 41. Ne3 {[%clk 0:00:19.2]} 41... Kf6 {[%clk
0:00:16.3]} 42. Kd3 {[%clk 0:00:11.1]} 42... g5 {[%clk 0:00:16.3]} 43. fxg5+
{[%clk 0:00:07.4]} 43... Kxg5 {[%clk 0:00:17.2]} 44. Ng2 {[%clk 0:00:07.4]}
44... Nxd5 {[%clk 0:00:16.5]} 45. Kd4 {[%clk 0:00:07.8]} 45... Nf4 {[%clk
0:00:16.4]} 46. h4+ {[%clk 0:00:03.9]} 46... Kg4 {[%clk 0:00:15]} 47. Ne3+
{[%clk 0:00:04.4]} 47... Kxh4 {[%clk 0:00:15.4]} 48. Nxf5+ {[%clk 0:00:04.9]}
48... Kg5 {[%clk 0:00:15.9]} 49. Nxd6 {[%clk 0:00:05.4]} 49... h4 {[%clk
0:00:15.5]} 50. Ne4+ {[%clk 0:00:05]} 50... Kg4 {[%clk 0:00:10.8]} 51. b4 {[%clk
0:00:04.7]} 51... a4 {[%clk 0:00:09.7]} 52. Kc5 {[%clk 0:00:04.2]} 52... Kf3
{[%clk 0:00:07.3]} 53. Ng5+ {[%clk 0:00:03.5]} 53... Kg4 {[%clk 0:00:07.6]} 54.
Ne4 {[%clk 0:00:03.4]} 54... Nd3+ {[%clk 0:00:07.9]} 55. Kxb5 {[%clk 0:00:03]}
55... Kf4 {[%clk 0:00:08.6]} 56. Nd2 {[%clk 0:00:02.9]} 56... h3 {[%clk
0:00:07.8]} 57. Nf1 {[%clk 0:00:03.2]} 57... Kf3 {[%clk 0:00:08]} 58. Kxa4
{[%clk 0:00:02.8]} 58... Kf2 {[%clk 0:00:07.9]} 59. Nh2 {[%clk 0:00:03.2]} 59...
Ne5 {[%clk 0:00:08.1]} 60. b5 {[%clk 0:00:02.7]} 60... Kg2 {[%clk 0:00:08.1]}
61. b6 {[%clk 0:00:02.3]} 61... Kxh2 {[%clk 0:00:08]} 62. b7 {[%clk 0:00:03.2]}
62... Nd7 {[%clk 0:00:08.4]} 63. Kb5 {[%clk 0:00:03.5]} 63... Kg3 {[%clk
0:00:04.3]} 64. Kc6 {[%clk 0:00:04.4]} 64... Nb8+ {[%clk 0:00:04.8]} 65. Kc7
{[%clk 0:00:05.3]} 65... h2 {[%clk 0:00:05.5]} 66. Kxb8 {[%clk 0:00:05.5]} 66...
h1=Q {[%clk 0:00:06.4]} 67. Ka7 {[%clk 0:00:05.4]} 67... Qg1+ {[%clk 0:00:06.1]}
68. Ka8 {[%clk 0:00:05.3]} 68... Qg2 {[%clk 0:00:06.3]} 69. a4 {[%clk
0:00:05.1]} 69... Qc6 {[%clk 0:00:05.3]} 70. a5 {[%clk 0:00:04.8]} 70... Qa6+
{[%clk 0:00:04.9]} 71. Kb8 {[%clk 0:00:05.4]} 71... Qxa5 {[%clk 0:00:05.4]} 72.
Kc8 {[%clk 0:00:05.5]} 72... Qc5+ {[%clk 0:00:05.7]} 73. Kb8 {[%clk 0:00:05.8]}
73... Kf4 {[%clk 0:00:05.8]} 74. Ka8 {[%clk 0:00:06.1]} 74... Qa5+ {[%clk
0:00:06]} 75. Kb8 {[%clk 0:00:06.5]} 75... Ke5 {[%clk 0:00:06.7]} 76. Kc8 {[%clk
0:00:07.4]} 76... Qc5+ {[%clk 0:00:06.4]} 77. Kd7 {[%clk 0:00:07.3]} 77... Qb6
{[%clk 0:00:05.8]} 78. Kc8 {[%clk 0:00:07.6]} 78... Qc6+ {[%clk 0:00:06.2]} 79.
Kb8 {[%clk 0:00:07.4]} 79... Kd6 {[%clk 0:00:06.7]} 80. Ka7 {[%clk 0:00:07.5]}
80... Qa4+ {[%clk 0:00:06.9]} 81. Kb8 {[%clk 0:00:07.8]} 81... Kc6 {[%clk
0:00:06.3]} 82. Kc8 {[%clk 0:00:08.1]} 82... Qa6 {[%clk 0:00:06.9]} 0-1

[Event "Late-Titled-Tuesday-Blitz-May-14-2024"]
[Site "Chess.com"]
[Date "2024.05.14"]
[Round "6"]
[White "Sanan_Sjugirov"]
[Black "Oneofmyturns"]
[Result "1-0"]
[WhiteElo "3040"]
[BlackElo "2801"]
[TimeControl "180+1"]
[EndTime "15:01:27 PDT"]
[Termination "Sanan_Sjugirov won by resignation"]

1. e4 {[%clk 0:03:00.9]} 1... e5 {[%clk 0:03:00.3]} 2. Nf3 {[%clk 0:03:00.5]}
2... Nc6 {[%clk 0:03:00.6]} 3. Bb5 {[%clk 0:03:00.3]} 3... a6 {[%clk 0:03:00.9]}
4. Ba4 {[%clk 0:03:00.7]} 4... Nf6 {[%clk 0:03:01.5]} 5. O-O {[%clk 0:03:01]}
5... b5 {[%clk 0:03:02.2]} 6. Bb3 {[%clk 0:03:00.9]} 6... Bc5 {[%clk 0:03:03.1]}
7. a4 {[%clk 0:03:00.2]} 7... Rb8 {[%clk 0:03:02]} 8. axb5 {[%clk 0:03:00.1]}
8... axb5 {[%clk 0:03:02.9]} 9. c3 {[%clk 0:02:59.1]} 9... d6 {[%clk 0:03:02.9]}
10. d4 {[%clk 0:02:59.5]} 10... Bb6 {[%clk 0:03:02.9]} 11. Na3 {[%clk
0:03:00.2]} 11... O-O {[%clk 0:02:54.8]} 12. Nxb5 {[%clk 0:02:59.7]} 12... Bg4
{[%clk 0:02:55.3]} 13. Bc2 {[%clk 0:02:57.5]} 13... Bxf3 {[%clk 0:02:49.8]} 14.
gxf3 {[%clk 0:02:56.9]} 14... Nh5 {[%clk 0:02:50.3]} 15. Kh1 {[%clk 0:02:51.8]}
15... Qf6 {[%clk 0:02:45.7]} 16. Be3 {[%clk 0:02:41.8]} 16... h6 {[%clk
0:02:28.1]} 17. Rg1 {[%clk 0:02:41.1]} 17... Nf4 {[%clk 0:02:24.8]} 18. Rg4
{[%clk 0:02:36.5]} 18... exd4 {[%clk 0:02:00]} 19. Rxf4 {[%clk 0:02:34.3]} 1-0

[Event "Late-Titled-Tuesday-Blitz-May-14-2024"]
[Site "Chess.com"]
[Date "2024.05.14"]
[Round "6"]
[White "RespectfulDaveOnYouTube"]
[Black "Timurist"]
[Result "1-0"]
[WhiteElo "2521"]
[BlackElo "2336"]
[TimeControl "180+1"]
[EndTime "15:01:31 PDT"]
[Termination "RespectfulDaveOnYouTube won by checkmate"]

1. d4 {[%clk 0:03:00.9]} 1... e6 {[%clk 0:02:50.9]} 2. Nc3 {[%clk 0:03:00.8]}
2... Nf6 {[%clk 0:02:48.9]} 3. e4 {[%clk 0:03:00.8]} 3... Bb4 {[%clk 0:02:48.5]}
4. e5 {[%clk 0:02:59.2]} 4... Nd5 {[%clk 0:02:45.8]} 5. Bd2 {[%clk 0:02:57.2]}
5... Nb6 {[%clk 0:02:44.9]} 6. Ne4 {[%clk 0:02:53.9]} 6... Be7 {[%clk
0:02:41.7]} 7. h4 {[%clk 0:02:52.2]} 7... d5 {[%clk 0:02:41.7]} 8. Ng3 {[%clk
0:02:44.5]} 8... Bxh4 {[%clk 0:02:37.6]} 9. Qg4 {[%clk 0:02:42.7]} 9... Be7
{[%clk 0:02:38.1]} 10. Qxg7 {[%clk 0:02:42.1]} 10... Rf8 {[%clk 0:02:37.2]} 11.
Rxh7 {[%clk 0:02:37.1]} 11... c5 {[%clk 0:02:31.9]} 12. dxc5 {[%clk 0:02:32.9]}
12... Bxc5 {[%clk 0:02:31.7]} 13. Nh5 {[%clk 0:02:27.8]} 13... N8d7 {[%clk
0:02:24.2]} 14. Bb5 {[%clk 0:02:27.3]} 14... Be7 {[%clk 0:02:06.1]} 15. Bh6
{[%clk 0:02:17.2]} 15... a6 {[%clk 0:02:03]} 16. Nf6+ {[%clk 0:02:15.7]} 16...
Bxf6 {[%clk 0:02:01.7]} 17. Qxf8# {[%clk 0:02:16.6]} 1-0

[Event "Late-Titled-Tuesday-Blitz-May-14-2024"]
[Site "Chess.com"]
[Date "2024.05.14"]
[Round "6"]
[White "Christian-Toth"]
[Black "subham777"]
[Result "0-1"]
[WhiteElo "2375"]
[BlackElo "2540"]
[TimeControl "180+1"]
[EndTime "15:01:34 PDT"]
[Termination "subham777 won by resignation"]

1. e4 {[%clk 0:03:00.9]} 1... e6 {[%clk 0:03:00]} 2. d4 {[%clk 0:03:00.3]} 2...
d5 {[%clk 0:02:58.9]} 3. exd5 {[%clk 0:03:01.2]} 3... exd5 {[%clk 0:02:58.9]} 4.
Nf3 {[%clk 0:03:02.1]} 4... Nf6 {[%clk 0:02:59.3]} 5. Bd3 {[%clk 0:03:01.9]}
5... Bd6 {[%clk 0:02:59.9]} 6. Qe2+ {[%clk 0:03:01.9]} 6... Be7 {[%clk
0:02:59.8]} 7. O-O {[%clk 0:03:00.8]} 7... O-O {[%clk 0:03:00.2]} 8. h3 {[%clk
0:03:00.1]} 8... c5 {[%clk 0:02:59.6]} 9. c3 {[%clk 0:02:59.2]} 9... Nc6 {[%clk
0:02:59.1]} 10. Be3 {[%clk 0:02:57.1]} 10... Re8 {[%clk 0:02:58.2]} 11. Nbd2
{[%clk 0:02:51.1]} 11... cxd4 {[%clk 0:02:51.1]} 12. Nxd4 {[%clk 0:02:50.2]}
12... Nxd4 {[%clk 0:02:48.7]} 13. Bxd4 {[%clk 0:02:51.1]} 13... Bc5 {[%clk
0:02:46]} 14. Bxf6 {[%clk 0:02:39.8]} 14... Rxe2 {[%clk 0:02:39.4]} 15. Bxd8
{[%clk 0:02:38.2]} 15... Rxd2 {[%clk 0:02:40]} 0-1

[Event "Late-Titled-Tuesday-Blitz-May-14-2024"]
[Site "Chess.com"]
[Date "2024.05.14"]
[Round "6"]
[White "remyrushbrooke"]
[Black "JM05C"]
[Result "0-1"]
[WhiteElo "2333"]
[BlackElo "2514"]
[TimeControl "180+1"]
[EndTime "15:02:49 PDT"]
[Termination "JM05C won by checkmate"]

1. d4 {[%clk 0:03:00.9]} 1... Nf6 {[%clk 0:03:00]} 2. Nc3 {[%clk 0:03:00.8]}
2... d5 {[%clk 0:02:59.5]} 3. Bg5 {[%clk 0:03:01]} 3... e6 {[%clk 0:02:59.1]} 4.
e4 {[%clk 0:02:59.8]} 4... Be7 {[%clk 0:02:59.2]} 5. e5 {[%clk 0:02:59.4]} 5...
Nfd7 {[%clk 0:02:59.2]} 6. Bxe7 {[%clk 0:02:55.9]} 6... Qxe7 {[%clk 0:03:00.1]}
7. Qg4 {[%clk 0:02:54.2]} 7... O-O {[%clk 0:02:58.5]} 8. f4 {[%clk 0:02:48]}
8... f5 {[%clk 0:02:56.6]} 9. exf6 {[%clk 0:02:38.3]} 9... Nxf6 {[%clk
0:02:56.4]} 10. Qh4 {[%clk 0:02:38.7]} 10... c5 {[%clk 0:02:53.1]} 11. Bd3
{[%clk 0:02:29.5]} 11... Nc6 {[%clk 0:02:51.7]} 12. Nf3 {[%clk 0:02:21.5]} 12...
cxd4 {[%clk 0:02:42.2]} 13. Ne2 {[%clk 0:01:55.9]} 13... Qb4+ {[%clk 0:02:35.9]}
14. c3 {[%clk 0:01:49.6]} 14... dxc3 {[%clk 0:02:34]} 15. bxc3 {[%clk
0:01:48.1]} 15... Qc5 {[%clk 0:02:33.7]} 16. Ned4 {[%clk 0:01:03.9]} 16... Qxc3+
{[%clk 0:02:31]} 17. Kf2 {[%clk 0:01:00.5]} 17... Nxd4 {[%clk 0:02:30]} 18. Rac1
{[%clk 0:00:56.8]} 18... Qxd3 {[%clk 0:02:29.4]} 19. Rhd1 {[%clk 0:00:56.1]}
19... Nxf3 {[%clk 0:02:28.1]} 20. Qg3 {[%clk 0:00:46.4]} 20... Ne4# {[%clk
0:02:24.2]} 0-1

[Event "Late-Titled-Tuesday-Blitz-May-14-2024"]
[Site "Chess.com"]
[Date "2024.05.14"]
[Round "6"]
[White "David_ATM"]
[Black "KaydenTroffChess"]
[Result "0-1"]
[WhiteElo "2444"]
[BlackElo "2844"]
[TimeControl "180+1"]
[EndTime "15:02:58 PDT"]
[Termination "KaydenTroffChess won by resignation"]

1. e4 {[%clk 0:03:00.9]} 1... c5 {[%clk 0:02:59.2]} 2. c3 {[%clk 0:03:00.6]}
2... g6 {[%clk 0:02:59.1]} 3. d4 {[%clk 0:03:00.9]} 3... cxd4 {[%clk 0:03:00]}
4. cxd4 {[%clk 0:03:01.7]} 4... d5 {[%clk 0:03:00.5]} 5. exd5 {[%clk 0:03:01.7]}
5... Nf6 {[%clk 0:03:00.4]} 6. Bb5+ {[%clk 0:02:51]} 6... Nbd7 {[%clk
0:02:59.8]} 7. Nc3 {[%clk 0:02:50.3]} 7... Bg7 {[%clk 0:02:59.8]} 8. d6 {[%clk
0:02:48.9]} 8... exd6 {[%clk 0:03:00.7]} 9. Nf3 {[%clk 0:02:48.7]} 9... O-O
{[%clk 0:03:00.3]} 10. O-O {[%clk 0:02:49.1]} 10... a6 {[%clk 0:02:58.3]} 11.
Bd3 {[%clk 0:02:45.6]} 11... b5 {[%clk 0:02:58.2]} 12. Ne4 {[%clk 0:02:42.5]}
12... Nxe4 {[%clk 0:02:54.5]} 13. Bxe4 {[%clk 0:02:43.4]} 13... Rb8 {[%clk
0:02:54.8]} 14. Bf4 {[%clk 0:02:26.8]} 14... Nf6 {[%clk 0:02:53.9]} 15. Bc2
{[%clk 0:02:21.2]} 15... Nd5 {[%clk 0:02:51]} 16. Bg3 {[%clk 0:02:20.9]} 16...
Bb7 {[%clk 0:02:50.4]} 17. Re1 {[%clk 0:02:19.6]} 17... Rc8 {[%clk 0:02:34.9]}
18. Rc1 {[%clk 0:02:19.9]} 18... Nb6 {[%clk 0:02:33.5]} 19. b3 {[%clk
0:02:07.2]} 19... Nd5 {[%clk 0:02:20.7]} 20. Bb1 {[%clk 0:01:59.8]} 20... Nc3
{[%clk 0:02:17.6]} 21. Qd3 {[%clk 0:01:57.6]} 21... b4 {[%clk 0:02:09.7]} 22. a3
{[%clk 0:01:33.1]} 22... Bh6 {[%clk 0:02:04.3]} 23. axb4 {[%clk 0:01:20.5]}
23... Bxc1 {[%clk 0:02:02]} 24. Rxc1 {[%clk 0:01:17.5]} 24... Ne2+ {[%clk
0:02:01.6]} 25. Qxe2 {[%clk 0:01:15.3]} 25... Rxc1+ {[%clk 0:02:01.8]} 26. Ne1
{[%clk 0:01:16.2]} 26... Re8 {[%clk 0:01:59.9]} 0-1

[Event "Late-Titled-Tuesday-Blitz-May-14-2024"]
[Site "Chess.com"]
[Date "2024.05.14"]
[Round "6"]
[White "AccioChess"]
[Black "ansko1999"]
[Result "0-1"]
[WhiteElo "2470"]
[BlackElo "2630"]
[TimeControl "180+1"]
[EndTime "15:03:19 PDT"]
[Termination "ansko1999 won by resignation"]

1. e4 {[%clk 0:02:59.5]} 1... c5 {[%clk 0:02:58.9]} 2. Nf3 {[%clk 0:02:59.1]}
2... Nf6 {[%clk 0:02:56.4]} 3. e5 {[%clk 0:02:58.8]} 3... Nd5 {[%clk 0:02:55]}
4. Nc3 {[%clk 0:02:54.9]} 4... e6 {[%clk 0:02:55.3]} 5. Nxd5 {[%clk 0:02:54.4]}
5... exd5 {[%clk 0:02:56.2]} 6. d4 {[%clk 0:02:54.2]} 6... Nc6 {[%clk
0:02:44.6]} 7. dxc5 {[%clk 0:02:48.3]} 7... Bxc5 {[%clk 0:02:43.9]} 8. Qxd5
{[%clk 0:02:47.8]} 8... d6 {[%clk 0:02:42.6]} 9. Bb5 {[%clk 0:02:43.5]} 9...
Qa5+ {[%clk 0:02:34.5]} 10. Bd2 {[%clk 0:02:15.7]} 10... Qxb5 {[%clk 0:02:31.7]}
11. O-O-O {[%clk 0:02:12.3]} 11... Be6 {[%clk 0:02:27.8]} 12. Qe4 {[%clk
0:02:11.4]} 12... d5 {[%clk 0:02:21.9]} 13. Qh4 {[%clk 0:02:10.6]} 13... Be7
{[%clk 0:02:17]} 14. Bg5 {[%clk 0:02:09.1]} 14... Rc8 {[%clk 0:02:07.4]} 15.
Bxe7 {[%clk 0:02:04.4]} 15... Nxe7 {[%clk 0:02:08.3]} 16. Nd4 {[%clk 0:02:04.3]}
16... Qc4 {[%clk 0:02:00.1]} 17. b3 {[%clk 0:01:34.5]} 17... Qc3 {[%clk
0:01:51.1]} 18. Rd3 {[%clk 0:00:48.7]} 18... Qxd3 {[%clk 0:01:47.1]} 0-1

[Event "Late-Titled-Tuesday-Blitz-May-14-2024"]
[Site "Chess.com"]
[Date "2024.05.14"]
[Round "6"]
[White "PepeCuenca"]
[Black "Msb2"]
[Result "0-1"]
[WhiteElo "2817"]
[BlackElo "3069"]
[TimeControl "180+1"]
[EndTime "15:03:36 PDT"]
[Termination "Msb2 won by resignation"]

1. d4 {[%clk 0:03:00.9]} 1... d5 {[%clk 0:03:00.2]} 2. Bf4 {[%clk 0:03:01]} 2...
c5 {[%clk 0:03:00.3]} 3. e3 {[%clk 0:03:01]} 3... Nc6 {[%clk 0:03:01]} 4. Nf3
{[%clk 0:03:01.2]} 4... e6 {[%clk 0:03:01.5]} 5. Nbd2 {[%clk 0:02:59.3]} 5...
Bd6 {[%clk 0:03:01.6]} 6. dxc5 {[%clk 0:02:52.9]} 6... Bxf4 {[%clk 0:02:59]} 7.
exf4 {[%clk 0:02:53.8]} 7... Qf6 {[%clk 0:02:59.6]} 8. c3 {[%clk 0:02:34.2]}
8... Qxf4 {[%clk 0:02:59.7]} 9. Bb5 {[%clk 0:02:24.2]} 9... Ne7 {[%clk
0:02:57.9]} 10. O-O {[%clk 0:02:21.3]} 10... O-O {[%clk 0:02:57.9]} 11. Re1
{[%clk 0:02:17.2]} 11... Qc7 {[%clk 0:02:56.6]} 12. c4 {[%clk 0:02:00.2]} 12...
d4 {[%clk 0:02:52.3]} 13. Ne4 {[%clk 0:01:57]} 13... e5 {[%clk 0:02:52]} 14. h3
{[%clk 0:01:49.9]} 14... a6 {[%clk 0:02:46.9]} 15. Ba4 {[%clk 0:01:43.5]} 15...
f6 {[%clk 0:02:42.5]} 16. a3 {[%clk 0:01:41.6]} 16... Be6 {[%clk 0:02:37.8]} 17.
Rc1 {[%clk 0:01:36.2]} 17... a5 {[%clk 0:02:37.2]} 18. Nd6 {[%clk 0:01:31.1]}
18... Rad8 {[%clk 0:02:35.1]} 19. Qb3 {[%clk 0:01:27]} 19... Rb8 {[%clk
0:02:30.6]} 20. Qb6 {[%clk 0:01:20.2]} 20... Qxb6 {[%clk 0:02:18.5]} 21. cxb6
{[%clk 0:01:21.1]} 21... Nc8 {[%clk 0:02:19.3]} 22. Bxc6 {[%clk 0:01:13]} 22...
Nxd6 {[%clk 0:02:14.5]} 23. Nxd4 {[%clk 0:01:12.9]} 23... Bxc4 {[%clk
0:02:14.9]} 24. Rxc4 {[%clk 0:00:49.5]} 24... Nxc4 {[%clk 0:02:15.8]} 25. Bd5+
{[%clk 0:00:50.1]} 25... Kh8 {[%clk 0:02:16]} 26. Ne6 {[%clk 0:00:51]} 26...
Rfc8 {[%clk 0:02:08.2]} 0-1